[Event "Titled Tuesday Blitz November 15 Late 2022"]
[White "Aggelis, Nikolaos"]
[Black "Kaplan, Avi Harrison"]
[WhiteFideId "4213220"]
[BlackFideId "30934559"]
[WhiteElo "2189"]
[BlackElo "1983"]
[Result "0-1"]
[Round "02"]
[TimeControl "180+1"]
[Date "2022.11.16"]
[WhiteClock "0:00:08"]
[BlackClock "0:00:04"]

1. d4 {[%clk 0:03:00]}  Nf6 {[%clk 0:02:59]} 2. Nf3 {[%clk 0:03:00]}  c5 {[%clk 0:02:58]} 3. d5 {[%clk 0:03:00]}  b5 {[%clk 0:02:58]} 4. e4 {[%clk 0:02:53]}  Nxe4 {[%clk 0:02:56]} 5. Nbd2 {[%clk 0:02:52]}  Nxd2 {[%clk 0:02:52]} 6. Qxd2 {[%clk 0:02:53]}  a6 {[%clk 0:02:49]} 7. a4 {[%clk 0:02:53]}  b4 {[%clk 0:02:49]} 8. b3 {[%clk 0:02:51]}  d6 {[%clk 0:02:33]} 9. Bb2 {[%clk 0:02:45]}  e5 {[%clk 0:02:33]} 10. dxe6 {[%clk 0:02:37]}  Bxe6 {[%clk 0:02:27]} 11. Be2 {[%clk 0:02:30]}  Be7 {[%clk 0:02:16]} 12. Bxg7 {[%clk 0:02:28]}  Rg8 {[%clk 0:02:16]} 13. Qh6 {[%clk 0:02:23]}  Bf5 {[%clk 0:01:44]} 14. O-O {[%clk 0:02:10]}  Nd7 {[%clk 0:01:41]} 15. Rfe1 {[%clk 0:02:08]}  Qc7 {[%clk 0:01:23]} 16. Bc4 {[%clk 0:02:02]}  Nb6 {[%clk 0:01:06]} 17. Bf6 {[%clk 0:01:46]}  Rg6 {[%clk 0:00:37]} 18. Qh4 {[%clk 0:01:46]}  Be6 {[%clk 0:00:30]} 19. Bxe6 {[%clk 0:01:28]}  Bxf6 {[%clk 0:00:30]} 20. Bf5+ {[%clk 0:01:18]}  Kf8 {[%clk 0:00:16]} 21. Qxh7 {[%clk 0:01:16]}  Rg8 {[%clk 0:00:16]} 22. Be6 {[%clk 0:01:03]}  Bxa1 {[%clk 0:00:14]} 23. Rxa1 {[%clk 0:00:58]}  Re8 {[%clk 0:00:15]} 24. Re1 {[%clk 0:00:48]}  Qb7 {[%clk 0:00:06]} 25. Kf1 {[%clk 0:00:39]}  Nd5 {[%clk 0:00:04]} 26. Qh6+ {[%clk 0:00:36]}  Rg7 {[%clk 0:00:04]} 27. Ng5 {[%clk 0:00:27]}  fxe6 {[%clk 0:00:02]} 28. Nxe6+ {[%clk 0:00:22]}  Rxe6 {[%clk 0:00:03]} 29. Qxe6 {[%clk 0:00:21]}  Re7 {[%clk 0:00:03]} 30. Qh6+ {[%clk 0:00:20]}  Ke8 {[%clk 0:00:03]} 31. Qh5+ {[%clk 0:00:15]}  Kd8 {[%clk 0:00:03]} 32. Qg5 {[%clk 0:00:10]}  Kd7 {[%clk 0:00:02]} 33. Rxe7+ {[%clk 0:00:08]}  Nxe7 {[%clk 0:00:03]} 34. h4 {[%clk 0:00:07]}  Qd5 {[%clk 0:00:03]} 35. h5 {[%clk 0:00:07]}  Qxg5 {[%clk 0:00:03]} 36. h6 {[%clk 0:00:08]}  Qxh6 {[%clk 0:00:04]} 0-1


[Site "https://www.chess.com"]

[Event "Titled Tuesday Blitz November 15 Late 2022"]
[White "Aguilar, Juan"]
[Black "Bordi, Kevin"]
[WhiteFideId "3800091"]
[BlackFideId "621862"]
[WhiteElo "2430"]
[BlackElo "2805"]
[Result "0-1"]
[Round "02"]
[TimeControl "180+1"]
[Date "2022.11.16"]
[WhiteClock "0:00:16"]
[BlackClock "0:01:05"]

1. d4 {[%clk 0:03:00]}  d5 {[%clk 0:03:00]} 2. c4 {[%clk 0:03:01]}  c6 {[%clk 0:03:00]} 3. Nf3 {[%clk 0:03:01]}  Nf6 {[%clk 0:03:00]} 4. Qc2 {[%clk 0:03:02]}  g6 {[%clk 0:03:00]} 5. Bf4 {[%clk 0:03:02]}  Bf5 {[%clk 0:03:00]} 6. Qb3 {[%clk 0:03:03]}  Qb6 {[%clk 0:03:00]} 7. c5 {[%clk 0:03:03]}  Qxb3 {[%clk 0:03:00]} 8. axb3 {[%clk 0:03:03]}  Nbd7 {[%clk 0:03:00]} 9. Nc3 {[%clk 0:03:00]}  Bg7 {[%clk 0:02:57]} 10. e3 {[%clk 0:02:57]}  O-O {[%clk 0:02:57]} 11. h3 {[%clk 0:02:56]}  a6 {[%clk 0:02:53]} 12. Be2 {[%clk 0:02:53]}  Ne4 {[%clk 0:02:52]} 13. O-O {[%clk 0:02:51]}  Rfe8 {[%clk 0:02:50]} 14. Ra4 {[%clk 0:02:43]}  e5 {[%clk 0:02:37]} 15. Nxe5 {[%clk 0:02:05]}  Nxe5 {[%clk 0:02:33]} 16. Bxe5 {[%clk 0:02:04]}  Bxe5 {[%clk 0:02:31]} 17. dxe5 {[%clk 0:02:05]}  Nxc5 {[%clk 0:02:26]} 18. Ra3 {[%clk 0:02:00]}  Rxe5 {[%clk 0:01:51]} 19. b4 {[%clk 0:01:37]}  Ne4 {[%clk 0:01:51]} 20. Na4 {[%clk 0:01:33]}  Rae8 {[%clk 0:01:44]} 21. Nc5 {[%clk 0:01:27]}  Nxc5 {[%clk 0:01:42]} 22. bxc5 {[%clk 0:01:27]}  d4 {[%clk 0:01:42]} 23. Rb3 {[%clk 0:01:16]}  Bc8 {[%clk 0:01:41]} 24. Rc1 {[%clk 0:01:12]}  dxe3 {[%clk 0:01:38]} 25. fxe3 {[%clk 0:01:13]}  Rxe3 {[%clk 0:01:37]} 26. Rxe3 {[%clk 0:01:08]}  Rxe3 {[%clk 0:01:38]} 27. Kf2 {[%clk 0:01:08]}  Rb3 {[%clk 0:01:30]} 28. Rd1 {[%clk 0:01:07]}  Kg7 {[%clk 0:01:27]} 29. Rd8 {[%clk 0:01:05]}  Be6 {[%clk 0:01:25]} 30. Rd2 {[%clk 0:01:04]}  Bd5 {[%clk 0:01:20]} 31. Bf3 {[%clk 0:00:41]}  Bxf3 {[%clk 0:01:18]} 32. gxf3 {[%clk 0:00:42]}  h5 {[%clk 0:01:17]} 33. h4 {[%clk 0:00:39]}  Kf6 {[%clk 0:01:16]} 34. Kg3 {[%clk 0:00:39]}  Ke6 {[%clk 0:01:13]} 35. Kf4 {[%clk 0:00:38]}  f6 {[%clk 0:01:13]} 36. Rd6+ {[%clk 0:00:37]}  Ke7 {[%clk 0:01:13]} 37. Rd2 {[%clk 0:00:36]}  Rb4+ {[%clk 0:01:13]} 38. Kg3 {[%clk 0:00:36]}  Rb5 {[%clk 0:01:11]} 39. Rc2 {[%clk 0:00:29]}  Ke6 {[%clk 0:01:11]} 40. Kf4 {[%clk 0:00:29]}  Kd5 {[%clk 0:01:10]} 41. Rg2 {[%clk 0:00:27]}  Rb4+ {[%clk 0:01:10]} 42. Ke3 {[%clk 0:00:26]}  Rxh4 {[%clk 0:01:09]} 43. Rxg6 {[%clk 0:00:26]}  Kxc5 {[%clk 0:01:09]} 44. Rxf6 {[%clk 0:00:26]}  Rb4 {[%clk 0:01:08]} 45. Rf5+ {[%clk 0:00:24]}  Kb6 {[%clk 0:01:04]} 46. Rxh5 {[%clk 0:00:24]}  Rxb2 {[%clk 0:01:04]} 47. f4 {[%clk 0:00:23]}  a5 {[%clk 0:01:05]} 48. f5 {[%clk 0:00:22]}  Rb1 {[%clk 0:01:05]} 49. f6 {[%clk 0:00:19]}  Rf1 {[%clk 0:01:05]} 50. Rh6 {[%clk 0:00:16]}  a4 {[%clk 0:01:05]} 51. Ke4 {[%clk 0:00:16]}  a3 {[%clk 0:01:05]} 0-1


[Site "https://www.chess.com"]

[Event "Titled Tuesday Blitz November 15 Late 2022"]
[White "Alexikov, Alexander"]
[Black "Riehle, Marco"]
[WhiteFideId "14103958"]
[BlackFideId "12904392"]
[WhiteElo "2222"]
[BlackElo "2462"]
[Result "0-1"]
[Round "02"]
[TimeControl "180+1"]
[Date "2022.11.16"]
[WhiteClock "0:00:01"]
[BlackClock "0:01:31"]

1. e4 {[%clk 0:03:00]}  e5 {[%clk 0:02:59]} 2. Nf3 {[%clk 0:02:59]}  Nf6 {[%clk 0:02:58]} 3. d4 {[%clk 0:02:57]}  Nxe4 {[%clk 0:02:58]} 4. Bd3 {[%clk 0:02:57]}  Nc6 {[%clk 0:02:58]} 5. d5 {[%clk 0:02:41]}  Nf6 {[%clk 0:02:55]} 6. dxc6 {[%clk 0:02:34]}  e4 {[%clk 0:02:55]} 7. Qe2 {[%clk 0:02:20]}  Qe7 {[%clk 0:02:54]} 8. cxd7+ {[%clk 0:02:10]}  Bxd7 {[%clk 0:02:54]} 9. Bxe4 {[%clk 0:02:08]}  Qxe4 {[%clk 0:02:52]} 10. Qxe4+ {[%clk 0:02:02]}  Nxe4 {[%clk 0:02:53]} 11. Nbd2 {[%clk 0:02:02]}  Bc6 {[%clk 0:02:51]} 12. Ne5 {[%clk 0:01:56]}  Nxd2 {[%clk 0:02:51]} 13. Nxc6 {[%clk 0:01:55]}  Nf3+ {[%clk 0:02:51]} 14. Ke2 {[%clk 0:01:53]}  bxc6 {[%clk 0:02:51]} 15. Kxf3 {[%clk 0:01:53]}  O-O-O {[%clk 0:02:51]} 16. Be3 {[%clk 0:01:51]}  Be7 {[%clk 0:02:43]} 17. Rhd1 {[%clk 0:01:43]}  Rd6 {[%clk 0:02:42]} 18. Rd2 {[%clk 0:01:34]}  Rhd8 {[%clk 0:02:39]} 19. Rad1 {[%clk 0:01:33]}  a6 {[%clk 0:02:36]} 20. c4 {[%clk 0:01:29]}  g5 {[%clk 0:02:31]} 21. g4 {[%clk 0:01:27]}  Rf8 {[%clk 0:02:28]} 22. Rxd6 {[%clk 0:01:07]}  cxd6 {[%clk 0:02:27]} 23. Ke4 {[%clk 0:01:06]}  h5 {[%clk 0:02:23]} 24. h3 {[%clk 0:01:05]}  hxg4 {[%clk 0:02:18]} 25. hxg4 {[%clk 0:01:03]}  Re8 {[%clk 0:02:12]} 26. Kf5 {[%clk 0:01:03]}  Bd8 {[%clk 0:02:12]} 27. Rxd6 {[%clk 0:00:53]}  f6 {[%clk 0:02:03]} 28. Bd4 {[%clk 0:00:36]}  Re2 {[%clk 0:01:58]} 29. Rxc6+ {[%clk 0:00:31]}  Kd7 {[%clk 0:01:56]} 30. Rxa6 {[%clk 0:00:30]}  Be7 {[%clk 0:01:49]} 31. c5 {[%clk 0:00:17]}  Rd2 {[%clk 0:01:48]} 32. Ra7+ {[%clk 0:00:16]}  Ke8 {[%clk 0:01:47]} 33. Ke6 {[%clk 0:00:15]}  Bd8 {[%clk 0:01:45]} 34. Rh7 {[%clk 0:00:11]}  Re2+ {[%clk 0:01:39]} 35. Kd5 {[%clk 0:00:09]}  Rd2 {[%clk 0:01:35]} 36. b4 {[%clk 0:00:07]}  Rxa2 {[%clk 0:01:33]} 37. Rh8+ {[%clk 0:00:05]}  Ke7 {[%clk 0:01:31]} 38. Rh7+ {[%clk 0:00:03]}  Ke8 {[%clk 0:01:32]} 39. Ke6 {[%clk 0:00:01]}  Ra6+ {[%clk 0:01:31]} 0-1


[Site "https://www.chess.com"]

[Event "Titled Tuesday Blitz November 15 Late 2022"]
[White "Antonio, Jorge Carlos"]
[Black "Reprintsev, Alexander"]
[WhiteFideId "113190"]
[BlackFideId "14100541"]
[WhiteElo "2247"]
[BlackElo "2230"]
[Result "1/2-1/2"]
[Round "02"]
[TimeControl "180+1"]
[Date "2022.11.16"]
[WhiteClock "0:00:27"]
[BlackClock "0:00:11"]

1. d4 {[%clk 0:03:00]}  d5 {[%clk 0:02:48]} 2. Nf3 {[%clk 0:03:00]}  Nc6 {[%clk 0:02:47]} 3. Bf4 {[%clk 0:03:00]}  Bg4 {[%clk 0:02:46]} 4. e3 {[%clk 0:02:57]}  e6 {[%clk 0:02:47]} 5. Nc3 {[%clk 0:02:57]}  Bb4 {[%clk 0:02:28]} 6. Qd3 {[%clk 0:02:53]}  Bf5 {[%clk 0:01:48]} 7. Qb5 {[%clk 0:02:47]}  Ne7 {[%clk 0:01:42]} 8. Qxb7 {[%clk 0:02:43]}  O-O {[%clk 0:01:41]} 9. Qxc7 {[%clk 0:02:33]}  Qxc7 {[%clk 0:01:37]} 10. Bxc7 {[%clk 0:02:31]}  Rfc8 {[%clk 0:01:38]} 11. Bg3 {[%clk 0:02:28]}  Na5 {[%clk 0:01:38]} 12. Kd2 {[%clk 0:02:15]}  Nc4+ {[%clk 0:01:28]} 13. Bxc4 {[%clk 0:02:12]}  Rxc4 {[%clk 0:01:29]} 14. Ne5 {[%clk 0:02:05]}  Rcc8 {[%clk 0:01:13]} 15. a3 {[%clk 0:02:04]}  Bxc3+ {[%clk 0:01:13]} 16. bxc3 {[%clk 0:01:59]}  f6 {[%clk 0:01:14]} 17. Nd3 {[%clk 0:01:54]}  Nc6 {[%clk 0:01:11]} 18. Rhb1 {[%clk 0:01:49]}  Na5 {[%clk 0:01:11]} 19. Rb5 {[%clk 0:01:41]}  Nc4+ {[%clk 0:01:10]} 20. Ke2 {[%clk 0:01:39]}  a6 {[%clk 0:01:05]} 21. Rc5 {[%clk 0:01:34]}  g5 {[%clk 0:00:46]} 22. Rxc8+ {[%clk 0:01:30]}  Rxc8 {[%clk 0:00:45]} 23. a4 {[%clk 0:01:27]}  Na5 {[%clk 0:00:42]} 24. Nc5 {[%clk 0:01:23]}  Bxc2 {[%clk 0:00:38]} 25. Nxe6 {[%clk 0:01:20]}  Rxc3 {[%clk 0:00:37]} 26. Kd2 {[%clk 0:01:14]}  Rc6 {[%clk 0:00:36]} 27. Nc5 {[%clk 0:01:10]}  Bg6 {[%clk 0:00:29]} 28. Ke1 {[%clk 0:00:58]}  h5 {[%clk 0:00:25]} 29. h4 {[%clk 0:00:53]}  Rb6 {[%clk 0:00:25]} 30. Bc7 {[%clk 0:00:46]}  Nb3 {[%clk 0:00:22]} 31. Bxb6 {[%clk 0:00:45]}  Nxa1 {[%clk 0:00:22]} 32. Nxa6 {[%clk 0:00:45]}  Nb3 {[%clk 0:00:18]} 33. Nc5 {[%clk 0:00:44]}  Nxc5 {[%clk 0:00:14]} 34. dxc5 {[%clk 0:00:41]}  Kf7 {[%clk 0:00:12]} 35. a5 {[%clk 0:00:41]}  Bd3 {[%clk 0:00:11]} 36. c6 {[%clk 0:00:40]}  Ke7 {[%clk 0:00:11]} 37. c7 {[%clk 0:00:40]}  Kd7 {[%clk 0:00:12]} 38. Kd2 {[%clk 0:00:39]}  Ba6 {[%clk 0:00:12]} 39. g3 {[%clk 0:00:39]}  gxh4 {[%clk 0:00:11]} 40. gxh4 {[%clk 0:00:38]}  Kd6 {[%clk 0:00:12]} 41. Kc3 {[%clk 0:00:38]}  Ke5 {[%clk 0:00:12]} 42. f3 {[%clk 0:00:34]}  f5 {[%clk 0:00:11]} 43. Kd2 {[%clk 0:00:31]}  Kd6 {[%clk 0:00:10]} 44. Kc3 {[%clk 0:00:30]}  Ke5 {[%clk 0:00:10]} 45. Kb4 {[%clk 0:00:28]}  Kd6 {[%clk 0:00:10]} 46. Kc3 {[%clk 0:00:27]}  Ke5 {[%clk 0:00:11]} 1/2-1/2


[Site "https://www.chess.com"]

[Event "Titled Tuesday Blitz November 15 Late 2022"]
[White "Babazada, Khazar"]
[Black "Krishnan, Varun"]
[WhiteFideId "13413554"]
[BlackFideId "5054508"]
[WhiteElo "2359"]
[BlackElo "2556"]
[Result "1/2-1/2"]
[Round "02"]
[TimeControl "180+1"]
[Date "2022.11.16"]
[WhiteClock "0:00:17"]
[BlackClock "0:00:14"]

1. d4 {[%clk 0:03:00]}  d5 {[%clk 0:02:58]} 2. c4 {[%clk 0:03:01]}  c6 {[%clk 0:02:56]} 3. cxd5 {[%clk 0:03:00]}  cxd5 {[%clk 0:02:55]} 4. Nc3 {[%clk 0:03:00]}  Nf6 {[%clk 0:02:53]} 5. Bf4 {[%clk 0:02:59]}  a6 {[%clk 0:02:53]} 6. e3 {[%clk 0:03:00]}  Nc6 {[%clk 0:02:51]} 7. Nf3 {[%clk 0:03:00]}  e6 {[%clk 0:02:39]} 8. Bd3 {[%clk 0:02:59]}  Bd6 {[%clk 0:02:37]} 9. Bg3 {[%clk 0:02:59]}  O-O {[%clk 0:02:36]} 10. O-O {[%clk 0:02:59]}  Re8 {[%clk 0:02:24]} 11. Rc1 {[%clk 0:02:55]}  e5 {[%clk 0:02:19]} 12. dxe5 {[%clk 0:02:54]}  Nxe5 {[%clk 0:02:18]} 13. Nxe5 {[%clk 0:02:55]}  Bxe5 {[%clk 0:02:17]} 14. Bxe5 {[%clk 0:02:56]}  Rxe5 {[%clk 0:02:16]} 15. Qa4 {[%clk 0:02:54]}  Qe7 {[%clk 0:01:56]} 16. Rfd1 {[%clk 0:02:50]}  Bf5 {[%clk 0:01:52]} 17. Bxf5 {[%clk 0:02:48]}  Rxf5 {[%clk 0:01:51]} 18. Rd4 {[%clk 0:02:42]}  Re8 {[%clk 0:01:49]} 19. Rcd1 {[%clk 0:02:41]}  Rd8 {[%clk 0:01:41]} 20. h3 {[%clk 0:02:40]}  h6 {[%clk 0:01:40]} 21. e4 {[%clk 0:02:25]}  Rf4 {[%clk 0:01:07]} 22. exd5 {[%clk 0:02:19]}  Rxd4 {[%clk 0:01:05]} 23. Qxd4 {[%clk 0:02:20]}  Qd6 {[%clk 0:01:03]} 24. Ne4 {[%clk 0:02:14]}  Nxe4 {[%clk 0:01:00]} 25. Qxe4 {[%clk 0:02:15]}  Rc8 {[%clk 0:00:57]} 26. g3 {[%clk 0:02:07]}  g6 {[%clk 0:00:52]} 27. Kg2 {[%clk 0:02:03]}  Rc5 {[%clk 0:00:52]} 28. Qe8+ {[%clk 0:02:01]}  Kg7 {[%clk 0:00:51]} 29. Qe4 {[%clk 0:02:01]}  b5 {[%clk 0:00:50]} 30. Qb4 {[%clk 0:01:58]}  Qc7 {[%clk 0:00:40]} 31. d6 {[%clk 0:01:55]}  Qc6+ {[%clk 0:00:39]} 32. Kg1 {[%clk 0:01:52]}  Rd5 {[%clk 0:00:34]} 33. Rxd5 {[%clk 0:01:49]}  Qxd5 {[%clk 0:00:34]} 34. Qc3+ {[%clk 0:01:48]}  Kh7 {[%clk 0:00:33]} 35. Qf6 {[%clk 0:01:44]}  Qd1+ {[%clk 0:00:30]} 36. Kg2 {[%clk 0:01:42]}  Qd5+ {[%clk 0:00:29]} 37. Kh2 {[%clk 0:01:43]}  a5 {[%clk 0:00:27]} 38. Qe7 {[%clk 0:01:43]}  Qf3 {[%clk 0:00:24]} 39. Qe3 {[%clk 0:01:41]}  Qd5 {[%clk 0:00:24]} 40. Qf4 {[%clk 0:01:28]}  b4 {[%clk 0:00:22]} 41. b3 {[%clk 0:01:24]}  h5 {[%clk 0:00:21]} 42. Qf6 {[%clk 0:01:20]}  Kg8 {[%clk 0:00:19]} 43. h4 {[%clk 0:00:59]}  Kh7 {[%clk 0:00:18]} 44. Kg1 {[%clk 0:00:55]}  Qd1+ {[%clk 0:00:18]} 45. Kg2 {[%clk 0:00:55]}  Qd5+ {[%clk 0:00:19]} 46. Qf3 {[%clk 0:00:54]}  Qxd6 {[%clk 0:00:18]} 47. Qxf7+ {[%clk 0:00:54]}  Kh8 {[%clk 0:00:18]} 48. Qe8+ {[%clk 0:00:54]}  Kg7 {[%clk 0:00:17]} 49. Qb5 {[%clk 0:00:52]}  Qc7 {[%clk 0:00:14]} 50. Qd5 {[%clk 0:00:51]}  Qa7 {[%clk 0:00:13]} 51. Qe5+ {[%clk 0:00:50]}  Kf7 {[%clk 0:00:13]} 52. Qd5+ {[%clk 0:00:50]}  Kg7 {[%clk 0:00:13]} 53. Kf3 {[%clk 0:00:50]}  Qc7 {[%clk 0:00:12]} 54. Ke4 {[%clk 0:00:49]}  Qc2+ {[%clk 0:00:11]} 55. Ke5 {[%clk 0:00:49]}  Qxa2 {[%clk 0:00:12]} 56. Qd7+ {[%clk 0:00:38]}  Kh6 {[%clk 0:00:12]} 57. Qd3 {[%clk 0:00:13]}  Qxf2 {[%clk 0:00:11]} 58. Kd5 {[%clk 0:00:11]}  Qf5+ {[%clk 0:00:11]} 59. Qxf5 {[%clk 0:00:11]}  gxf5 {[%clk 0:00:12]} 60. Kc5 {[%clk 0:00:12]}  Kg6 {[%clk 0:00:12]} 61. Kb5 {[%clk 0:00:13]}  f4 {[%clk 0:00:12]} 62. gxf4 {[%clk 0:00:12]}  Kf5 {[%clk 0:00:13]} 63. Kxa5 {[%clk 0:00:13]}  Kxf4 {[%clk 0:00:14]} 64. Kxb4 {[%clk 0:00:14]}  Kg4 {[%clk 0:00:14]} 65. Ka4 {[%clk 0:00:14]}  Kxh4 {[%clk 0:00:15]} 66. b4 {[%clk 0:00:15]}  Kg3 {[%clk 0:00:16]} 67. b5 {[%clk 0:00:16]}  h4 {[%clk 0:00:16]} 68. b6 {[%clk 0:00:17]}  h3 {[%clk 0:00:16]} 69. b7 {[%clk 0:00:18]}  h2 {[%clk 0:00:16]} 70. b8=Q+ {[%clk 0:00:19]}  Kg2 {[%clk 0:00:16]} 71. Qb7+ {[%clk 0:00:20]}  Kg1 {[%clk 0:00:14]} 72. Qb1+ {[%clk 0:00:20]}  Kg2 {[%clk 0:00:12]} 73. Qc2+ {[%clk 0:00:21]}  Kg1 {[%clk 0:00:13]} 74. Qd1+ {[%clk 0:00:21]}  Kg2 {[%clk 0:00:13]} 75. Qe2+ {[%clk 0:00:22]}  Kg1 {[%clk 0:00:14]} 76. Qg4+ {[%clk 0:00:22]}  Kh1 {[%clk 0:00:14]} 77. Qf4 {[%clk 0:00:17]}  Kg2 {[%clk 0:00:14]} 78. Qe4+ {[%clk 0:00:17]}  Kg1 {[%clk 0:00:14]} 79. Qg4+ {[%clk 0:00:17]}  Kh1 {[%clk 0:00:14]} 1/2-1/2


[Site "https://www.chess.com"]

[Event "Titled Tuesday Blitz November 15 Late 2022"]
[White "Beerdsen, Thomas"]
[Black "Can, Melih Kaan"]
[WhiteFideId "1030108"]
[BlackFideId "6317383"]
[WhiteElo "2567"]
[BlackElo "2010"]
[Result "1-0"]
[Round "02"]
[TimeControl "180+1"]
[Date "2022.11.16"]
[WhiteClock "0:01:47"]
[BlackClock "0:00:04"]

1. e4 {[%clk 0:03:00]}  c5 {[%clk 0:02:58]} 2. Nf3 {[%clk 0:03:01]}  Nc6 {[%clk 0:02:58]} 3. Bc4 {[%clk 0:03:00]}  Nf6 {[%clk 0:02:54]} 4. e5 {[%clk 0:02:56]}  Ng4 {[%clk 0:02:54]} 5. Bxf7+ {[%clk 0:02:56]}  Kxf7 {[%clk 0:02:46]} 6. Ng5+ {[%clk 0:02:57]}  Ke8 {[%clk 0:01:56]} 7. Qxg4 {[%clk 0:02:56]}  Nxe5 {[%clk 0:01:56]} 8. Qg3 {[%clk 0:02:55]}  d6 {[%clk 0:01:51]} 9. Nc3 {[%clk 0:02:53]}  Bf5 {[%clk 0:01:45]} 10. d3 {[%clk 0:02:48]}  Qd7 {[%clk 0:01:38]} 11. O-O {[%clk 0:02:47]}  e6 {[%clk 0:01:33]} 12. Re1 {[%clk 0:02:44]}  h6 {[%clk 0:01:31]} 13. Nge4 {[%clk 0:02:41]}  Nc6 {[%clk 0:01:16]} 14. Bf4 {[%clk 0:02:41]}  Rd8 {[%clk 0:01:12]} 15. Nd5 {[%clk 0:02:28]}  e5 {[%clk 0:00:46]} 16. Nef6+ {[%clk 0:02:28]}  gxf6 {[%clk 0:00:44]} 17. Nxf6+ {[%clk 0:02:28]}  Kf7 {[%clk 0:00:39]} 18. Nxd7 {[%clk 0:02:29]}  Rxd7 {[%clk 0:00:36]} 19. Bd2 {[%clk 0:02:22]}  Be7 {[%clk 0:00:37]} 20. f4 {[%clk 0:02:19]}  Rg8 {[%clk 0:00:36]} 21. Qf2 {[%clk 0:02:19]}  Bh3 {[%clk 0:00:29]} 22. g3 {[%clk 0:02:16]}  Kg6 {[%clk 0:00:21]} 23. Bc3 {[%clk 0:02:11]}  Bf6 {[%clk 0:00:16]} 24. fxe5 {[%clk 0:02:07]}  Nxe5 {[%clk 0:00:16]} 25. Re4 {[%clk 0:02:01]}  Rf8 {[%clk 0:00:16]} 26. Rf4 {[%clk 0:01:59]}  Rdf7 {[%clk 0:00:15]} 27. Re1 {[%clk 0:01:57]}  Bg5 {[%clk 0:00:15]} 28. Bxe5 {[%clk 0:01:53]}  dxe5 {[%clk 0:00:13]} 29. Rxf7 {[%clk 0:01:54]}  Rxf7 {[%clk 0:00:13]} 30. Qxc5 {[%clk 0:01:55]}  Bd2 {[%clk 0:00:11]} 31. Qxe5 {[%clk 0:01:51]}  Bxe1 {[%clk 0:00:10]} 32. Qxe1 {[%clk 0:01:52]}  h5 {[%clk 0:00:08]} 33. d4 {[%clk 0:01:51]}  Bg4 {[%clk 0:00:07]} 34. Qe4+ {[%clk 0:01:49]}  Kf6 {[%clk 0:00:06]} 35. h3 {[%clk 0:01:48]}  Re7 {[%clk 0:00:04]} 36. Qxe7+ {[%clk 0:01:47]} 1-0


[Site "https://www.chess.com"]

[Event "Titled Tuesday Blitz November 15 Late 2022"]
[White "Buchenau, Frank"]
[Black "Sohal, Tanraj"]
[WhiteFideId "4604350"]
[BlackFideId "2608499"]
[WhiteElo "2157"]
[BlackElo "2200"]
[Result "1/2-1/2"]
[Round "02"]
[TimeControl "180+1"]
[Date "2022.11.16"]
[WhiteClock "0:00:17"]
[BlackClock "0:00:18"]

1. e4 {[%clk 0:03:00]}  d5 {[%clk 0:02:58]} 2. exd5 {[%clk 0:03:00]}  Qxd5 {[%clk 0:02:59]} 3. Nc3 {[%clk 0:03:00]}  Qd8 {[%clk 0:03:00]} 4. d4 {[%clk 0:03:00]}  Nf6 {[%clk 0:03:01]} 5. Nf3 {[%clk 0:03:01]}  g6 {[%clk 0:03:02]} 6. Bc4 {[%clk 0:03:01]}  Bg7 {[%clk 0:03:03]} 7. O-O {[%clk 0:03:01]}  O-O {[%clk 0:03:03]} 8. Re1 {[%clk 0:03:01]}  Bg4 {[%clk 0:03:04]} 9. h3 {[%clk 0:02:52]}  Bxf3 {[%clk 0:03:03]} 10. Qxf3 {[%clk 0:02:52]}  Nc6 {[%clk 0:03:04]} 11. d5 {[%clk 0:02:48]}  Na5 {[%clk 0:03:04]} 12. Bf1 {[%clk 0:02:37]}  b6 {[%clk 0:03:04]} 13. Bf4 {[%clk 0:02:30]}  Nb7 {[%clk 0:03:03]} 14. Rad1 {[%clk 0:02:28]}  Nd6 {[%clk 0:03:03]} 15. Nb5 {[%clk 0:02:24]}  Nh5 {[%clk 0:02:53]} 16. Bg5 {[%clk 0:02:17]}  Bf6 {[%clk 0:02:49]} 17. Bh6 {[%clk 0:02:11]}  Bg7 {[%clk 0:02:47]} 18. Bxg7 {[%clk 0:02:08]}  Nxg7 {[%clk 0:02:42]} 19. Nd4 {[%clk 0:02:07]}  Ngf5 {[%clk 0:02:42]} 20. Nc6 {[%clk 0:02:06]}  Qd7 {[%clk 0:02:41]} 21. g4 {[%clk 0:02:03]}  Ng7 {[%clk 0:02:26]} 22. Rxe7 {[%clk 0:02:00]}  Qc8 {[%clk 0:02:25]} 23. Qf6 {[%clk 0:01:49]}  Nde8 {[%clk 0:02:19]} 24. Qe5 {[%clk 0:01:47]}  Kh8 {[%clk 0:02:11]} 25. c4 {[%clk 0:01:45]}  Qa6 {[%clk 0:02:06]} 26. c5 {[%clk 0:01:39]}  Qxa2 {[%clk 0:02:04]} 27. d6 {[%clk 0:01:38]}  Qa4 {[%clk 0:01:57]} 28. b3 {[%clk 0:01:20]}  Qxc6 {[%clk 0:01:46]} 29. Bg2 {[%clk 0:01:18]}  Qxc5 {[%clk 0:01:33]} 30. Qxc5 {[%clk 0:01:07]}  bxc5 {[%clk 0:01:34]} 31. Bxa8 {[%clk 0:00:59]}  Nxd6 {[%clk 0:01:22]} 32. Rxc7 {[%clk 0:00:50]}  Nb5 {[%clk 0:00:56]} 33. Rxc5 {[%clk 0:00:50]}  Rxa8 {[%clk 0:00:40]} 34. Rxb5 {[%clk 0:00:50]}  Ne6 {[%clk 0:00:40]} 35. Rd7 {[%clk 0:00:46]}  Kg7 {[%clk 0:00:32]} 36. Rbb7 {[%clk 0:00:41]}  Rf8 {[%clk 0:00:31]} 37. Rxa7 {[%clk 0:00:39]}  Nc5 {[%clk 0:00:31]} 38. Rdc7 {[%clk 0:00:30]}  Nxb3 {[%clk 0:00:31]} 39. f4 {[%clk 0:00:29]}  Nd4 {[%clk 0:00:29]} 40. Rc4 {[%clk 0:00:25]}  Ne6 {[%clk 0:00:26]} 41. Kf2 {[%clk 0:00:24]}  Rb8 {[%clk 0:00:21]} 42. f5 {[%clk 0:00:20]}  Rb2+ {[%clk 0:00:21]} 43. Kg3 {[%clk 0:00:16]}  Rb3+ {[%clk 0:00:21]} 44. Kg2 {[%clk 0:00:16]}  Rb2+ {[%clk 0:00:17]} 45. Kg3 {[%clk 0:00:17]}  Rb3+ {[%clk 0:00:17]} 46. Kg2 {[%clk 0:00:17]}  Rb2+ {[%clk 0:00:18]} 47. Kg3 {[%clk 0:00:17]} 1/2-1/2


[Site "https://www.chess.com"]